[Event "Tata Steel Chess Masters 2023"]
[Site "Chess.com"]
[Date "2023.01.19"]
[Round "5"]
[White "Carlsen, Magnus"]
[Black "Abdusattorov, Nodirbek"]
[Result "0-1"]
[WhiteElo "2859"]
[BlackElo "2713"]
[ECO "A34"]
[EventDate "2023.??.??"]
[Annotator "rafael"]
[PlyCount "120"]
[Beauty "6392048002079"]
[EventType "schev"]
[EventRounds "4"]
[TimeControl "6000+30"]

1.c4 c5 2.Nf3 Nf6 3.Nc3 Nc6 4.e3 e5 {One of the most critical moves, but Black has other popular options.} ( 4...e6 ) ( 4...g6 ) ( 4...d5 ) 5.Be2 ( 5.d4 {is the most popular move, and Magnus had played it before.} 5...e4 ( 5...cxd4 6.exd4 e4 7.Ne5 Bb4 {was played in the recent high-profile game Erigaisi-Maghsoodloo, Tata Steel India (blitz) 2022.} ) 6.d5 $5 {[%c_effect d5;square;d5;type;Interesting;persistent;true]} 6...exf3 7.dxc6 fxg2 8.cxd7+ Bxd7 9.Bxg2 g6 {and the game was later drawn in Carlsen-Vachier-Lagrave, Baden-Baden 2018.} ) 5...d5 6.cxd5 ( 6.d4 {After this move, we get a transposition to a position that can occur from a different move order.} 6...exd4 7.exd4 {I remember studying this position a long time ago before a game against GM Rublevsky. But my study came from a different move order: 1.e4 c5 2.Nf3 e6 3.c4 Nc6 4.Nc3 Nf6 5.Be2 d5 6.exd5 exd5 7.d4. This is a well-known position, played in hundreds of games.} ) 6...Nxd5 7.O-O {The game begins to drift away from the paths already trodden. But Magnus still had experiences here.} 7...Be7 ( 7...Nc7 {was played by Grischuk against Carlsen in an online blitz game in 2017.} ) 8.Bb5 {Threatening to win the e5-pawn, which can even be sacrificed after 8...0-0, but Abdusattorov prefers to play solidly.} 8...Nxc3 ( 8...O-O $5 {[%c_effect g8;square;g8;type;Interesting;persistent;true]} 9.Bxc6 bxc6 10.Nxe5 Bd6 {with compensation for the pawn.} ) 9.bxc3 ( 9.dxc3 Qxd1 10.Rxd1 f6 11.e4 Be6 {was equal in Carlsen-Vachier-Lagrave, Riyadh (blitz) 2017.} ) 9...Qc7 10.d4 cxd4 11.cxd4 exd4 12.Nxd4 Bd7 {A new move.} ( 12...O-O {was played in the only previous game in this position.} 13.Qc2 ( 13.Bb2 {is the best way to fight for a small advantage.} ) 13...Bd6 14.Bxc6 bxc6 15.h3 Bd7 {with an equal position in Vakhidov-Sjugirov, Abu Dhabi 2015.} ) 13.Nf3 {This somewhat strange move is intended to avoid exchanging knights and keep some life in the position. After the most natural} ( 13.Bb2 {the game is close to a draw:} 13...Nxd4 14.Bxd7+ Qxd7 15.Bxd4 O-O ) 13...Bf6 ( 13...O-O {is also possible. White has nothing special after} 14.Bb2 Rfd8 ) 14.Ba3 $5 {[%c_effect a3;square;a3;type;Interesting;persistent;true] A very brave move, changing the character of the game. White sacrifices the exchange to force Black into castling queenside. Objectively he creates more problems than solutions for White, who now has to play very precisely and doesn't have much hope of an advantage. But I understand that Carlsen wanted to complicate the game and that the most normal move doesn't give chances to win.} ( 14.Rb1 O-O 15.Bb2 Bxb2 {The most solid.} ( 15...Bf5 {is also possible, but here White has compensation for the exchange after} 16.Bxf6 Bxb1 17.Bxg7 $1 {[%c_effect g7;square;g7;type;GreatFind;persistent;true]} 17...Kxg7 18.Qxb1 ) 16.Rxb2 Ne5 {with simplifications and a likely draw.} ) 14...Bxa1 {Accepting the gift.} ( 14...Qa5 $5 {[%c_effect a5;square;a5;type;Interesting;persistent;true] is also possible.} ) 15.Qxa1 O-O-O {Black has no choice; the king must go to the queenside. Now White can try to exploit the c-file to create attacking chances, but it's not enough for an advantage.} 16.Rc1 ( 16.Qxg7 $2 {[%c_effect g7;square;g7;type;Mistake;persistent;true] is too optimistic.} 16...Rhg8 17.Qxh7 ( 17.Qxf7 $2 {[%c_effect f7;square;f7;type;Mistake;persistent;true]} 17...Rxg2+ $1 {[%c_effect g2;square;g2;type;GreatFind;persistent;true]} 18.Kxg2 Bh3+ {winning the queen.} ) 17...Qa5 $1 {[%c_effect a5;square;a5;type;GreatFind;persistent;true] and now White is forced to capture on c6, and this gives Black a winning position.} ) 16...Kb8 ( 16...f6 {This is a natural move, avoiding the capture of the g7-pawn. After} 17.Nd4 Kb8 {White has compensation for the exchange but not more.} ) 17.Qxg7 Rhg8 18.Qb2 $6 {[%c_effect b2;square;b2;type;Inaccuracy;persistent;true] After this move, Black grabs the initiative.} ( 18.Qxh7 $1 {[%c_effect h7;square;h7;type;GreatFind;persistent;true] is correct, although White must be ready to part with the h2-pawn.} 18...Bg4 19.Be2 Rh8 20.Qc2 Bxf3 21.Bxf3 Qxh2+ 22.Kf1 Rc8 23.Qb2 {White has a pawn and the pair of bishops for the exchange. His king is relatively safe. The computer, as usual, evaluates the position as even.} ) 18...Bg4 $1 {[%c_effect g4;square;g4;type;GreatFind;persistent;true]} 19.Ne1 ( 19.Nd2 {During the live broadcast, I suggested this move, although it's clear that something has gone wrong.} ) ( 19.Be2 {This move defends the knight but removes the attack on c6.} ) 19...Rd1 $1 {[%c_effect d1;square;d1;type;GreatFind;persistent;true] An excellent move. If you are an exchange up, trading your opponent's remaining rook is usually a good strategy.} 20.Rxd1 Bxd1 21.Bf1 Ne5 22.h3 Bf3 $6 {[%c_effect f3;square;f3;type;Inaccuracy;persistent;true] Not the most accurate.} ( 22...Nc4 {is a very natural try. After} 23.Qd4 Nxa3 24.Qxd1 Nc4 {Black has the advantage, but White has drawing chances.} ) ( 22...Bh5 $5 {[%c_effect h5;square;h5;type;Interesting;persistent;true] Taking the bishop off its odd square and moving it to g6 is a good alternative.} ) 23.Qd4 ( 23.Qb1 $1 {[%c_effect b1;square;b1;type;GreatFind;persistent;true] is a good try. After} 23...Bd5 ( 23...Rg6 24.Qb4 $1 {[%c_effect b4;square;b4;type;GreatFind;persistent;true]} ) 24.Qxh7 Rd8 25.Bb2 {The position is totally unclear. White will try to push the h-pawn, and anything can happen.} ) 23...Rd8 24.Qh4 Bd5 25.Qxh7 Bc4 {A solid move, exchanging bishops and creating space for a queen invasion.} ( 25...Bxa2 26.Bb2 {again leads to an unclear position. Objectively Black should be better, but the h-pawn, supported by the b2-bishop, will be a constant headache.} ) 26.Bb2 Bxf1 27.Kxf1 Qc4+ 28.Kg1 Nc6 ( 28...f6 $5 {[%c_effect f6;square;f6;type;Interesting;persistent;true] is an interesting move that creates big practical problems for White.} 29.Bd4 $1 {[%c_effect d4;square;d4;type;GreatFind;persistent;true]} ( 29.Qe7 $6 {[%c_effect e7;square;e7;type;Inaccuracy;persistent;true]} 29...Rd1 $1 {[%c_effect d1;square;d1;type;GreatFind;persistent;true]} 30.Bxe5+ fxe5 31.Qxe5+ Qc7 32.Qh8+ Qc8 33.Qxc8+ Kxc8 34.Kf1 Ra1 {The endgame is winning for Black.} ) 29...Qe2 30.Qb1 {with some advantage for Black.} ) 29.Nf3 Qxa2 30.Bf6 Rd1+ 31.Kh2 a5 {The position becomes very sharp. A possible race begins between the a-pawn and the h-pawn.} 32.Nd4 ( 32.h4 $1 {[%c_effect h4;square;h4;type;GreatFind;persistent;true] is the critical move.} 32...Qxf2 33.Qe4 $1 {[%c_effect e4;square;e4;type;GreatFind;persistent;true] Centralizing the queen and preparing the pawn to advance.} ( 33.Qxf7 Qxe3 34.Bg5 {is also possible.} ) 33...Qf1 {Avoiding 34.h5 because of the check on h1. The position remains unclear.} ) 32...Qd5 {A good move, bringing the queen to both defense and attack.} 33.Qc2 $6 {[%c_effect c2;square;c2;type;Inaccuracy;persistent;true]} ( 33.Qg7 $1 {[%c_effect g7;square;g7;type;GreatFind;persistent;true] This difficult move, protecting d4 and clearing the path of the h-pawn, is the best. The computer evaluates the position as equal.} ) 33...Qd6+ 34.f4 ( 34.g3 $2 {[%c_effect g3;square;g3;type;Mistake;persistent;true]} 34...Qxf6 35.Qxd1 ( 35.Nxc6+ bxc6 36.Qxd1 Qxf2+ 37.Kh1 Qxg3 ) 35...Nxd4 36.exd4 Qxf2+ 37.Kh1 Qxg3 {with a winning endgame for Black.} ) 34...Rxd4 $1 {[%c_effect d4;square;d4;type;GreatFind;persistent;true]} 35.Bxd4 Nxd4 36.exd4 Qxf4+ 37.g3 Qxd4 {Now just two outcomes are possible: either a draw or a Black win. The former seemed far more likely at this point, judging by the world champion's renowned endgame technique.} 38.h4 a4 39.Qa2 $1 {[%c_effect a2;square;a2;type;GreatFind;persistent;true] A precise move.} ( 39.h5 Qe5 $1 {[%c_effect e5;square;e5;type;GreatFind;persistent;true] gives Black good winning chances.} ) 39...f5 ( 39...Qb4 {is not enough for a win.} 40.Qxf7 a3 41.Qd5 $1 {[%c_effect d5;square;d5;type;GreatFind;persistent;true]} 41...Qb2+ 42.Kh3 a2 43.Qd8+ Ka7 44.Qa5+ {with perpetual check.} ) 40.h5 Qh8 41.Qxa4 ( 41.Qf7 $5 {[%c_effect f7;square;f7;type;Interesting;persistent;true] is a draw, according to the computer.} 41...a3 42.Qxf5 ( 42.Kh3 {is also enough.} 42...a2 43.Qxa2 Qxh5+ 44.Kg2 {White is able to reach a draw in this endgame.} ) 42...Qb2+ 43.Kh3 a2 44.Qf8+ Ka7 45.Qc5+ {The computer indicates a draw after all the most accurate checks. Of course, this looks scary for White during an actual game.} ) 41...Qxh5+ {With seven pieces on the board, I can finally use the tablebase, the tool that saves all commentators from being embarrassed by their analysis. To be honest, nowhere is this tool as useful as it is in a queen endgame, the hardest type of endgame in chess. These endings are so difficult that the variations are often almost unintelligible: you simply need to check in the right square, something only the computer can do. For that reason, I apologize in advance to the reader for not trying to explain the unexplainable in some lines.} 42.Kg1 Qf3 43.Kh2 $2 {[%c_effect h2;square;h2;type;Mistake;persistent;true] This is a losing move.} ( 43.Qe8+ {Only this move is a draw, according to the tablebase.} 43...Kc7 44.Qe5+ Kb6 45.Qd6+ ) 43...Qe2+ 44.Kg1 Qe5 $1 {[%c_effect e5;square;e5;type;GreatFind;persistent;true] An excellent move, centralizing the queen and avoiding White's checks. Abdusattorov shows great endgame technique to convert his advantage.} 45.Kf2 b5 46.Qb4 Kb7 47.g4 fxg4 48.Qxg4 Kb6 {One of the peculiarities of queen and pawn vs. queen endings is the positioning of the king of the defending side. Contrary to conventional logic, it's often best to have the king far away. For example, if you put this position in the tablebase with White's king on h7, you see that the endgame is a draw. This exercise, by the way, can be repeated in other positions: try putting the white king on different squares and see if that changes the evaluation. What's the logic of that, why a king on a farther square might be better $2 In queen endgames, checks are often enough to draw even with the opponent's pawn very advanced. For this to work, it's important that the check is not answered with another check; for this, it's important that the king is far away.} 49.Qg8 b4 50.Kf3 Kb5 {If it were on h7, White would have an \"easy\" draw.} 51.Kg2 Qe2+ 52.Kg3 Qe3+ 53.Kg2 b3 54.Qb8+ Kc4 55.Qg8+ Kc3 56.Qc8+ Kd2 {The win is easy now.} 57.Qh8 Kc2 58.Qc8+ Kd1 59.Qh8 Qd2+ 60.Kg3 b2 {A fantastic victory for the young Abdusattorov, proving once again that his name will be a constant presence in the chess elite for many years to come.} ( 60...b2 61.Qh7 ( 61.Qh1+ Qe1+ ) 61...Qc3+ 62.Kh4 ( 62.Kf2 Qc2+ ) 62...Qb4+ {and Black queens.} ) 0-1

[Event "Tata Steel Chess Masters 2023"]
[Site "Chess.com"]
[Date "2023.01.21"]
[Round "7"]
[White "Erigaisi, Arjun"]
[Black "Abdusattorov, Nodirbek"]
[Result "0-1"]
[WhiteElo "2722"]
[BlackElo "2713"]
[ECO "C43"]
[EventDate "2023.??.??"]
[Annotator "rafael"]
[PlyCount "86"]
[Beauty "7424140404818"]
[EventType "schev"]
[EventRounds "4"]
[TimeControl "6000+30"]

1.e4 e5 2.Nf3 Nf6 3.d4 Nxe4 4.dxe5 d5 ( 4...Bc5 {This aggressive move is also possible and leads to very confusing positions in which White's advantage has yet to be proven.} 5.Bc4 Nxf2 6.Bxf7+ Kxf7 7.Qd5+ Kg6 8.Qxc5 Nxh1 9.Nc3 h6 {A recent game ended in perpetual check after} 10.Qc4 Nc6 11.Nd5 d6 12.Nf4+ Kh7 13.Qe4+ Kg8 14.Qd5+ Kh7 15.Qe4+ Kg8 16.Qd5+ Kh7 17.Qe4+ {Anton Guijarro-Vidit, Prague 2022.} ) 5.Nbd2 Nxd2 ( 5...Qd7 {This move is much less common but was played by Nepomniachtchi against Duda in the Candidates Tournament.} ) 6.Bxd2 Be7 7.Bd3 c5 8.c3 Nc6 9.O-O {The position is still known by theory. Black has good central control and free piece development, but the advanced pawn on e5 gives White some chances on the kingside.} 9...Bg4 {Usually Black plays 9...0-0 or 9...Bg4. This will be the first time a combination of these two moves is played.} ( 9...O-O 10.Re1 Be6 11.Qc2 h6 12.Rad1 Qd7 {With rough equality in Guseinov-Markus, Olympiad 2022.} ) 10.Re1 O-O {This is probably inaccurate due to Erigaisi's following play.} ( 10...Qd7 11.h3 Bh5 12.Bf4 {was tried in Firouzja-Najer, Riga 2021.} ) 11.h3 Bh5 12.Bf5 $1 {[%c_effect f5;square;f5;type;GreatFind;persistent;true] A very unpleasant move to face. The bishop on f5 prevents the normal development of the queen on d7 and supports an e5-e6 advance. If Black plays with Bg6, then it's possible to capture the bishop, with two possible consequences: 1- Black captures with the f-pawn, leaving White with a superior pawn structure; 2- Black captures with the h-pawn, after which White advances e5-e6 and tries to exploit Black's kingside weaknesses.} 12...Kh8 {A difficult prophylactic move. The idea is probably to anticipate a possible e5-e6 advance.} ( 12...Bg6 13.Bxg6 fxg6 {It's clear that White is better with a superior pawn structure.} ( 13...hxg6 14.e6 $1 {[%c_effect e6;square;e6;type;GreatFind;persistent;true]} ) ) 13.Qe2 Qb6 14.Bf4 Rae8 15.Rad1 d4 {Play by both sides is quite logical and the tension grows.} 16.g4 $1 {[%c_effect g4;square;g4;type;GreatFind;persistent;true]} 16...Bg6 17.Qc2 $6 {[%c_effect c2;square;c2;type;Inaccuracy;persistent;true] This move doesn't seem to flow naturally with what's expected from White's position and it's the beginning of Erigaisi's problems.} ( 17.h4 {is logical, but a bit rushed. Black manages to equalize after} 17...h5 $1 {[%c_effect h5;square;h5;type;GreatFind;persistent;true]} 18.Ng5 Bxg5 19.hxg5 Ne7 ) ( 17.Bg3 $5 {[%c_effect g3;square;g3;type;Interesting;persistent;true] is a good prophylactic move, taking the bishop off the f-file, which makes the Bxg6 move stronger.} ) 17...Rd8 18.h4 Qa6 $1 {[%c_effect a6;square;a6;type;GreatFind;persistent;true] With his last two moves Abdusattorov sets up the …d4-d3 advance.} 19.cxd4 cxd4 20.Qb3 $6 {[%c_effect b3;square;b3;type;Inaccuracy;persistent;true]} ( 20.Qe4 {is better and White manages to keep the game balanced, for example:} 20...Qxa2 21.Nxd4 Nxd4 22.Rxd4 Qxb2 23.Rxd8 Rxd8 24.Rb1 ) 20...d3 {Passed pawns must be pushed $1 But if chess were that simple, it probably wouldn't have so many fans.} 21.h5 $6 {[%c_effect h5;square;h5;type;Inaccuracy;persistent;true]} ( 21.Re4 $1 {[%c_effect e4;square;e4;type;GreatFind;persistent;true] is a better try, avoiding Black's following knight move.} ) 21...Bxf5 22.gxf5 Nd4 $1 {[%c_effect d4;square;d4;type;GreatFind;persistent;true]} 23.Nxd4 Rxd4 24.Bg3 d2 {With this monstrous pawn on d2 and White's weaknesses on the kingside, Black is already firmly in control of the game.} 25.Re3 Qh6 $1 {[%c_effect h6;square;h6;type;GreatFind;persistent;true] Attacking the h5-pawn. Abdusattorov plays the rest of the game with great precision.} 26.Qxb7 $2 {[%c_effect b7;square;b7;type;Mistake;persistent;true] White is much worse after this move.} ( 26.Rd3 $1 {[%c_effect d3;square;d3;type;GreatFind;persistent;true] is necessary, as eliminating the d2-pawn is a priority.} 26...Rxd3 27.Qxd3 Rd8 28.Qe3 Qxh5 ( 28...Bg5 29.f4 ) 29.Rxd2 Rxd2 30.Qxd2 Qxf5 31.Qd5 $1 {[%c_effect d5;square;d5;type;GreatFind;persistent;true] with excellent drawing chances for White.} ) 26...Bg5 $1 {[%c_effect g5;square;g5;type;GreatFind;persistent;true] The bishop now gives extra support to the passed pawn.} 27.Rc3 Qxh5 28.Qf3 Qh3 {Continuing the attack is a human and natural reaction, but the computer indicates a decisive advantage for Black in the endgame after} ( 28...Qxf3 29.Rxf3 Re4 30.Kf1 Rc8 31.Rc3 Rxc3 32.bxc3 h5 {The white rook is paralyzed and the bishop isn't much help either.} ) 29.Bh2 Rg4+ 30.Bg3 ( 30.Kh1 Qxf3+ 31.Rxf3 Re4 $1 {[%c_effect e4;square;e4;type;GreatFind;persistent;true] and there is no defense against rook invasion on e1.} 32.Rg3 Re1+ 33.Rg1 Rxd1 34.Rxd1 Rc8 {followed by 35...Rc1.} ) 30...h6 {The computer suggests other moves, but I like this one. It's useful to give the king some air.} 31.Qg2 $2 {[%c_effect g2;square;g2;type;Mistake;persistent;true] Now it's over.} ( 31.Qh1 $1 {[%c_effect h1;square;h1;type;GreatFind;persistent;true] is the only chance, although it's very hard to defend after} 31...Rxg3+ $5 {[%c_effect g3;square;g3;type;Interesting;persistent;true]} ( 31...Qxh1+ 32.Kxh1 {is also much better for Black.} ) 32.fxg3 Qxf5 33.Qd5 Re8 34.Rf3 Qh3 {The d2-pawn is well defended and the white king is very exposed. The compensation for the exchange should be enough for victory.} ) 31...Qh5 $1 {[%c_effect h5;square;h5;type;GreatFind;persistent;true]} 32.f3 ( 32.Qf3 Re8 33.Kf1 Qh3+ 34.Ke2 Rd4 {White's position is close to collapsing.} ) 32...Rd4 33.Qh2 Bh4 $1 {[%c_effect h4;square;h4;type;GreatFind;persistent;true]} 34.Kf1 Rfd8 35.Bf2 Re4 $1 {[%c_effect e4;square;e4;type;GreatFind;persistent;true] A beautiful move. Abdusattorov is implacable in conducting the initiative.} 36.f6 ( 36.Qh3 Rd5 {The e5-pawn falls.} ) 36...gxf6 37.Qh3 Rf4 38.Bxa7 Qxe5 39.Be3 Qb5+ 40.Kg1 Qe2 41.Qf1 Rg8+ 42.Kh1 Qxf1+ 43.Rxf1 Rxf3 {Another masterpiece by Abdusattorov.} ( 43...Be1 {is also a nice way to win:} 44.Bxf4 d1=Q ) 0-1